Cogmind - Beta 13 @@@ ROGUE MODE // 2024.04.02 @ 21:21:07 Player: Zorgan Result: Destroyed by G-34 Mercenary with Small Laser Performance ------------- Evolutions (1) 500 Regions Visited (4) 800 Robots Destroyed (28) 140 Value Destroyed (611) 611 Prototype IDs (1) 20 Alien Tech Used (0) 0 Bonus (0) 0 TOTAL SCORE: 2071 Bonus ------- None Cogmind --------- Core Integrity 0/400 Matter 34/300 Energy 87/100 System Corruption 0% Temperature Cool (6) Movement Core (250) Ox4 Location -9/Mines Parts ------- > --- POWER (2) -------- (None) > --- PROPULSION (2) --- (None) > --- UTILITY (3) ------ Heat Sink Medium Storage Unit Utility Shielding > --- WEAPON (2) ------- Mace > --- INVENTORY (10) --- Improved Hover Unit Field Recycling Unit (0) Peak State ------------ > --- POWER ------------ Light Ion Engine > --- PROPULSION ------- Flight Unit Flight Unit > --- UTILITY ---------- Experimental Sensor Array Utility Shielding > --- WEAPON ----------- Heavy Assault Rifle Heavy Assault Rifle > --- INVENTORY -------- Light Ion Engine Small Storage Unit [Rating: 17] Favorites ----------- Power Light Ion Engine Engine Light Ion Engine Power Core Light Nuclear Core Propulsion Flight Unit Leg Aluminum Leg Wheel Wheel Hover Unit Hover Unit Flight Unit Flight Unit Utility Utility Shielding Device Experimental Sensor Array Storage Small Storage Unit Protection Utility Shielding Weapon Heavy Assault Rifle Energy Gun Particle Gun Ballistic Gun Heavy Assault Rifle Launcher Grenade Launcher Special Weapon Welding Torch Impact Weapon Mace Build | -11 -10 -10 -9 -9 ------- Run | Yrd Mat Min Mat Min Slots Evolved 2 | . . . 2 . Power 1 | . . . 1 . Propulsion . | . . . . . Utility 1 | . . . 1 . Weapon . | . . . . . Parts Attached 46 | 10 12 8 11 5 Power 7 | 1 1 3 2 . Engine 6 | 1 1 3 1 . Core 1 | . . . 1 . Reactor . | . . . . . Propulsion 14 | 5 5 1 3 . Treads . | . . . . . Leg 2 | 2 . . . . Wheel 5 | 3 1 . 1 . Hover 4 | . 2 . 2 . Flight 3 | . 2 1 . . Utility 10 | 2 2 2 3 1 Device 7 | 2 1 1 2 1 Storage 2 | . 1 . 1 . Processor . | . . . . . Hackware . | . . . . . Protection 1 | . . 1 . . Artifact . | . . . . . Weapon 15 | 2 4 2 3 4 Energy Gun 1 | . . . . 1 Energy Cannon . | . . . . . Ballistic Gun 7 | 2 2 1 2 . Ballistic Cannon . | . . . . . Launcher 4 | . 1 1 1 1 Special Weapon 1 | . 1 . . . Impact Weapon 2 | . . . . 2 Slashing Weapon . | . . . . . Piercing Weapon . | . . . . . Special Melee Weapon . | . . . . . Unidentified Prototypes 1 | . . 1 . . Parts Lost 25 | . 9 . 11 5 Power 4 | . 1 . 2 1 Propulsion 8 | . 3 . 3 2 Utility 4 | . 2 . 2 . Weapon 9 | . 3 . 4 2 Highest Loss Streak 8 | . 8 . 6 5 To Critical Strikes . | . . . . . Average Slot Usage (%) 85 | . 89 98 64 71 Engine 11 | . 12 14 7 . Wheel 3 | . 13 . 3 . Hover 2 | . 3 . 3 17 Flight 15 | . 7 27 4 . Device 11 | . 17 9 9 9 Storage 5 | . 8 4 5 11 Protection 10 | . . 14 11 11 Ballistic Gun 17 | . 15 21 14 . Launcher 6 | . 9 6 4 . Naked Turns . | . . . . . Heaviest Build 22 | 8 18 15 21 22 Greatest Support 26 | 20 26 8 16 13 Greatest Overweight (x) 6 | . 5 4 6 4 Average Overweight (x) 1 | . . 1 1 1 Largest Inventory Capacity 10 | 5 8 8 10 10 Average Capacity 6 | 5 6 5 7 10 Most Carried 7 | 5 7 4 5 4 Average Carried 1 | 2 3 1 . 2 Final Capacity 10 | 5 8 5 10 10 Final Carried 4 | 1 4 1 2 2 Class Distribution -------------------- 98% | Mutant Dominant Class ---------------- Mutant | -10/Materials Mutant | -10/Mines Mutant | -9/Materials Mutant | -9/Mines Resources | -11 -10 -10 -9 -9 ----------- Run | Yrd Mat Min Mat Min Matter Collected 726 | 144 250 108 182 42 Remotely . | . . . . . Salvage Created 650 | 76 339 41 182 12 Parts 51 | 7 25 6 13 . Haulers Intercepted . | . . . . . Recyclers Shooed 4 | . 3 . 1 . Parts Field Recycled . | . . . . . Retrieved Matter . | . . . . . Parts Self-Destructed . | . . . . . Prevented . | . . . . . Kills | -11 -10 -10 -9 -9 ------- Run | Yrd Mat Min Mat Min Combat Hostiles Destroyed 17 | 1 8 3 4 1 Guns 11 | 1 3 3 4 . AOE 6 | . 5 . . 1 Classes Destroyed 9 | 2 5 . 1 1 Worker 3 | . 3 . . . Builder 2 | . 2 . . . Tunneler 1 | 1 . . . . Recycler 2 | . 2 . . . Watcher 3 | . 2 . 1 . Swarmer 6 | . 3 3 . . Grunt 8 | 1 5 . 2 . Sentry 2 | . . . 2 . Demolisher 1 | . . . . 1 Best Kill Streak 8 | 2 8 3 2 1 Combat Bots Only 3 | 1 3 3 2 1 Max Kills in Single Turn 2 | 1 2 1 1 1 Gunslinging . | . . . . . Exploded 2 | . 2 . . 1 Melee . | . . . . . Uniques/NPCs Destroyed . | . . . . . Combat | -11 -10 -10 -9 -9 -------- Run | Yrd Mat Min Mat Min Hostile Shots Fired 198 | 9 60 19 95 15 Missed 62 | 3 19 7 29 4 Damage Taken 2040 | 69 662 100 884 325 Core 641 | 23 186 27 298 107 Absorbed by Shields . | . . . . . Redirected to Shielding 26 | . . . 21 5 Core Remaining (%) 47 | 90 . 5 . . Volleys Fired 69 | 8 26 5 27 3 Largest 2 | 2 2 2 2 1 Hottest 65 | 40 50 46 60 65 Shots Fired 108 | 16 41 10 38 3 Gun 86 | 16 24 10 35 1 Cannon . | . . . . . Launcher 22 | . 17 . 3 2 Special . | . . . . . Kinetic 85 | 16 24 10 35 . Thermal 1 | . . . . 1 Explosive 22 | . 17 . 3 2 Electromagnetic . | . . . . . Robot Hit Streak 8 | 5 8 5 7 2 Robot Miss Streak 4 | 2 2 1 4 2 Penetration Max . | . . . . . Secondary Targets 3 | 1 . 1 1 . Max Gunslinging Chain 1 | 1 . 1 1 . Shots Hit Robots 67 | 10 27 6 22 2 Core Hits 55 | 3 28 3 14 7 Critical Kills . | . . . . . Critical Parts Destroyed 1 | 1 . . . . Critical Strikes 1 | 1 . . . . Destroy 1 | 1 . . . . Melee Attacks . | . . . . . Impact . | . . . . . Slashing . | . . . . . Piercing . | . . . . . Sneak Attacks . | . . . . . Combat Hostiles . | . . . . . Follow-up Attacks . | . . . . . Damage Inflicted 1664 | 121 996 92 362 93 Guns 713 | 121 190 92 310 . Cannons . | . . . . . Explosions 943 | . 804 . 52 87 Melee . | . . . . . Ramming 8 | . 2 . . 6 Kinetic 713 | 121 190 92 310 . Thermal . | . . . . . Explosive 943 | . 804 . 52 87 Electromagnetic . | . . . . . Impact . | . . . . . Slashing . | . . . . . Piercing . | . . . . . Highest Corruption . | . . . . . Average Corruption . | . . . . . Corruption Purged . | . . . . . Corruption Blocked . | . . . . . Overload Shots . | . . . . . Overflow Damage 13 | . 13 . . . Projectiles . | . . . . . Explosions 13 | . 13 . . . Melee . | . . . . . Knockbacks . | . . . . . Impact . | . . . . . Kinetic . | . . . . . Secondary . | . . . . . Self-Inflicted Damage 250 | . 154 . . 96 Shots 11 | . 9 . . 2 Rammed 2 | . 1 . . 1 Targets Rammed 2 | . 1 . . 1 Kicked . | . . . . . Crushed . | . . . . . Highest Temperature 22 | 6 22 . 19 6 Average Temperature 10 | 6 15 . 9 4 Received Heat Transfer 702 | 36 246 . 360 60 Siege Activations . | . . . . . Robots Corrupted . | . . . . . Combat Hostiles . | . . . . . Parts Fried . | . . . . . Impact Corruptions . | . . . . . Robots Melted . | . . . . . Combat Hostiles . | . . . . . Parts Melted . | . . . . . Heat Transferred . | . . . . . Parts Sabotaged . | . . . . . Parts Stolen . | . . . . . Parts Stripped . | . . . . . Power Chain Reactions . | . . . . . Alert | -11 -10 -10 -9 -9 ------- Run | Yrd Mat Min Mat Min Peak Influence 304 | 25 304 176 112 21 Initial 106 | . 16 106 . 1 Average 87 | 10 170 95 52 1 Maximum Alert Level 1 | . 1 . . . Low Security (%) 90 | 100 44 100 100 100 Level 1 9 | . 55 . . . Level 2 . | . . . . . Level 3 . | . . . . . Level 4 . | . . . . . Level 5 . | . . . . . High Security . | . . . . . Max Security . | . . . . . Squads Dispatched 3 | . 2 . 1 . Investigation 1 | . 1 . . . Extermination . | . . . . . Reinforcement 2 | . 1 . 1 . Assault . | . . . . . Garrison . | . . . . . Intercept . | . . . . . Searches Triggered . | . . . . . Construction Impeded . | . . . . . Haulers Reinforced . | . . . . . Active Scanning Responses . | . . . . . Cargo Convoy Interrupts . | . . . . . Stealth | -11 -10 -10 -9 -9 --------- Run | Yrd Mat Min Mat Min Distress Signals 3 | . . . 3 . Communications Jammed . | . . . . . Distress Signals . | . . . . . Times Spotted 32 | 1 11 3 12 5 Peak Tracking Total 4 | 1 3 3 4 4 Tactical Retreats . | . . . . . Traps | -11 -10 -10 -9 -9 ------- Run | Yrd Mat Min Mat Min Traps Triggered 1 | . 1 . . . Indirectly . | . . . . . Trap Hack Attempts . | . . . . . Triggered . | . . . . . Disarmed . | . . . . . Reprogrammed . | . . . . . Reused . | . . . . . Traps Extracted . | . . . . . Installed . | . . . . . Triggered . | . . . . . Machines | -11 -10 -10 -9 -9 ---------- Run | Yrd Mat Min Mat Min Machines Disabled 5 | . 3 . 2 . Max in Single Turn 2 | . 2 . 1 . Machines Repaired . | . . . . . Machines Dismantled . | . . . . . Machines Sabotaged . | . . . . . Overloaded Fab Kills . | . . . . . Hacking | -11 -10 -10 -9 -9 --------- Run | Yrd Mat Min Mat Min Machines Accessed 4 | . 2 . 2 . Terminals 3 | . 2 . 1 . Fabricators . | . . . . . Repair Stations . | . . . . . Recycling Units . | . . . . . Scanalyzers 1 | . . . 1 . Garrison Access . | . . . . . Total Hacks 8 | . 4 . 4 . Successful 4 | . 2 . 2 . Failed 4 | . 2 . 2 . Catastrophic . | . . . . . Database Lockouts . | . . . . . Manual 5 | . 3 . 2 . Terminals 7 | . 4 . 3 . Fabricators . | . . . . . Repair Stations . | . . . . . Recycling Units . | . . . . . Scanalyzers 1 | . . . 1 . Garrison Access . | . . . . . Terminal Hacks 4 | . 2 . 2 . Alert Level 1 | . . . 1 . Reinforcement Status 1 | . 1 . . . Registered Components 1 | . . . 1 . Zone Layout 1 | . 1 . . . Fabricator Hacks . | . . . . . Repair Station Hacks . | . . . . . Recycling Unit Hacks . | . . . . . Scanalyzer . | . . . . . Garrison Access Hacks . | . . . . . Unauthorized Hacks . | . . . . . Terminals . | . . . . . Fabricators . | . . . . . Repair Stations . | . . . . . Recycling Units . | . . . . . Scanalyzers . | . . . . . Garrison Access . | . . . . . Data Cores Recovered . | . . . . . Used . | . . . . . Hacking Detections 4 | . 2 . 2 . Full Trace Events . | . . . . . Feedback Events . | . . . . . Feedback Blocked . | . . . . . Robot Schematics Acquired . | . . . . . Robots Built . | . . . . . Authchips . | . . . . . Time . | . . . . . Total Robot Build Rating . | . . . . . Part Schematics Acquired . | . . . . . Parts Built . | . . . . . Authchips . | . . . . . Time . | . . . . . Total Part Build Rating . | . . . . . Parts Repaired . | . . . . . Time . | . . . . . Parts Recycled . | . . . . . Recycled Matter . | . . . . . Retrieved Matter . | . . . . . Retrieved Components . | . . . . . Parts Scanalyzed . | . . . . . Part Schematics Acquired . | . . . . . Parts Damaged . | . . . . . Bothacking | -11 -10 -10 -9 -9 ------------ Run | Yrd Mat Min Mat Min Used RIF Installer . | . . . . . Robots Hacked . | . . . . . Non-combat . | . . . . . Combat . | . . . . . Robot Hacks Applied . | . . . . . Relay Couplers Released . | . . . . . Fabnet Peak Effective % . | . . . . . Robots Rewired . | . . . . . Allies Hacked . | . . . . . Hacks Repelled . | . . . . . Allies | -11 -10 -10 -9 -9 -------- Run | Yrd Mat Min Mat Min Total Allies . | . . . . . Largest Group . | . . . . . Highest-Rated Group . | . . . . . Highest-Rated Ally . | . . . . . Total Orders . | . . . . . Ally Attacks . | . . . . . Total Damage . | . . . . . Kills . | . . . . . Allies Corrupted . | . . . . . Allies Melted . | . . . . . Intel | -11 -10 -10 -9 -9 ------- Run | Yrd Mat Min Mat Min Robot Analysis Total . | . . . . . Derelict Logs Recovered 1 | . . 1 . . Drone Launches . | . . . . . Drone Recoveries . | . . . . . Exploration | -11 -10 -10 -9 -9 ------------- Run | Yrd Mat Min Mat Min Turns Passed 1650 | 116 294 727 441 72 Spaces Moved 1109 | 93 171 552 247 46 Core 106 | 24 13 10 58 1 Treads . | . . . . . Legs . | . . . . . Wheels 270 | 69 129 . 72 . Hover 112 | . 15 . 52 45 Flight 621 | . 14 542 65 . Fastest Speed 50 | 50 80 117 100 116 Average Speed 119 | 72 116 119 138 121 Slowest Speed 360 | 80 360 250 350 250 Overloaded Moves . | . . . . . Propulsion Burnouts . | . . . . . Robots Hopped . | . . . . . Cave-ins Triggered . | . . . . . Exploration Rate (%) 34 | 8 32 91 21 18 Regions Visited 4 Branch Regions 2 Pre-discovered Areas . | . . . . . Known Exits Taken . | . . . . . Unknown Exits Taken 4 | 1 1 1 1 . Scrap Searched 2 | . . 2 . . Spaces Dug . | . . . . . Terrain Destroyed 74 | . 53 . 12 9 Melee . | . . . . . Projectile . | . . . . . AOE 74 | . 53 . 12 9 Terrain Rammed . | . . . . . Walls Destroyed . | . . . . . Machines Disabled . | . . . . . Actions | -11 -10 -10 -9 -9 --------- Run | Yrd Mat Min Mat Min Total 1337 | 130 226 612 309 60 Wait 50 | . . 38 12 . Move 1105 | 92 170 551 246 46 Hop . | . . . . . Pick Up 44 | 13 12 4 11 4 Fast Attach . | . . . . . Attach 42 | 9 11 6 11 5 Detach 8 | 2 2 2 1 1 Swap 4 | 1 1 2 . . Drop 13 | 5 3 4 1 . Fire 69 | 8 26 5 27 3 Melee . | . . . . . Ram 2 | . 1 . . 1 Kick . | . . . . . Crush . | . . . . . Escape Stasis . | . . . . . Rewire . | . . . . . Trap . | . . . . . Miscellaneous . | . . . . . Route ------- -11/Scrapyard -10/Materials -10/Mines (discovered 3 exits: *Mat x2 / [*Exi]) -9/Materials -9/Mines (discovered 1 exit: [*Mat]) History --------- Turn | Location | Event 2 | -11/Scrapyard | Met Revision 17 51 | -11/Scrapyard | Discovered new exit (range 8) 117 | -11/Scrapyard | Entered Materials 161 | -10/Materials | Discovered new exit (range 16) 306 | -10/Materials | Build established: Mutant 343 | -10/Materials | Core integrity fell below 50% 393 | -10/Materials | Core integrity fell below 20% 411 | -10/Materials | Entered Mines 417 | -10/Mines | Lost 8 parts (1p2n2u3w) 602 | -10/Mines | Discovered new exit (range 12) 634 | -10/Mines | Found a damaged Exp. Sensor Array with a note attached 637 | -10/Mines | Found Prototype Device 638 | -10/Mines | Identified Exp. Sensor Array 689 | -10/Mines | Learned Materials security intel 701 | -10/Mines | Discovered new exit (range 6) 813 | -10/Mines | YI-UF0 nonchalantly dropped a Grenade Launcher on the ground 881 | -10/Mines | Deemed a non-threat by the Exiles lab entrance 881 | -10/Mines | Discovered new exit (range 5) 1138 | -10/Mines | Entered Materials 1138 | -9/Materials | Evolved 2 slots: Power x1, Utility x1 1292 | -9/Materials | Lost 6 parts (1p2n1u2w) 1451 | -9/Materials | Discovered new exit (range 9) 1484 | -9/Materials | Core integrity fell below 50% 1552 | -9/Materials | Lost 3 parts (1n1u1w) 1579 | -9/Materials | Entered Mines 1608 | -9/Mines | Received a Rocket Launcher from a helpful Derelict 1632 | -9/Mines | Assembled infested the area 1637 | -9/Mines | Assisted by a Guerilla fighting off Assembled 1639 | -9/Mines | Discovered new exit (range 9) 1640 | -9/Mines | Core integrity fell below 20% 1651 | -9/Mines | Destroyed by G-34 Mercenary with Small Laser Last Messages --------------- 01618_ Acquired Rocket Launcher. 01620_ K-01 Serf collects debris. 01632_ ALERT: Infestation in the mines, dispatching Demolisher response squad. 01637_ C-30 ARC bursts open, deploying its payload. 01637_ D-53 Grenadier unfolds itself. 01639_ Slammed into D-53 Grenadier. 01639_ Particle Gun destroyed. 01639_ Imp. Hover Unit destroyed. 01639_ EXIT=FOUND 01639_ Seismic Survey Station disabled. 01642_ Acquired 42 matter. 01642_ Lgt. Nuclear Core destroyed. 01644_ Hover Unit destroyed. 01646_ The unstable cave ceiling collapses. [Achievement: Let's See Who's Tougher] 01648_ D-53 Grenadier destroyed. 01648_ Rocket Launcher destroyed. [Achievement: First Step to Greatness] Map ----- +----------------------------------------------------+ | ??????????????????????????????????????????????? | | ??????????????????????????????????????????????? | | ??????????????????????????????????????????????? | | ??????????????????????????????????????????????? | | ??????????????????????????????????????????????? | | ??????????????????????????????????????????????? | | ??????????????????????????????????????????????? | | ?????###??????????????????????????????????????? | | ?????# ??????????????????????????????????????? | | ?????# ??????????????????????????????????????? | | ?????# #?????????????????????????????????????? | | ?????# #????????????????????????????????????? | | ?????# ????????????????????????????????????? | | ?????# ????????????????????????????????????? | | ?????# ????????????????????????????????????? | | ????## #????????????????????????????????????? | | ????# #???????#T????####???????????????????? | | ????# ##??????# ? #???????????????????? | | ????# #??????# """ #???????????????????? | | ?????# #??????# """ #???????????????????? | | ??????# #??????# """ < #???????????????????? | | ??????## #??????# #???????????????????? | | ???????# #??????# """ #???????????????????? | | ???????# #??????# "" g #???????????????????? | | ???????# #??????# g #???????????????????? | | ????#### #??????# d@ #???????????????????? | | ???## ####???# ##???????????????????? | | ??## ##### % #??????????????????? | | ??# #??????????????????? | | ??# #??????????????????? | | ??## ### ##??????????????????? | | ???### ##?# ##???????????????????? | | ?????## #??## ###????????????????????? | | ??????# #???## #??????????????????????? | | ??????# #????# ?????????????????? | | ??????## #????# ###### #???????????????? | | ???????# #????## ##??????????????????????? | | ???????# #?????### #???????????????????????? | | ???????# #???????# #???????????????????????? | | ???????## #???????# #???????????????????????? | | ????????## #??????? ! ???????????????????????? | | ?????????# #??????? ???????????????????????? | | ?????????? #???????####??????????????????????? | | ?????????? #?????????????????????????????????? | | ??????????###?????????????????????????????????? | | ??????????????????????????????????????????????? | | ??????????????????????????????????????????????? | | ??????????????????????????????????????????????? | | ??????????????????????????????????????????????? | | ??????????????????????????????????????????????? | +----------------------------------------------------+ Best States ------------- Heat Dissipation 38 Energy Generation 15 Energy Capacity 265 Matter Stores 132 Matter Capacity 300 Sight Range 16 Robot Scan Range 20 Terrain Scan Density 10 Utility Shielding 33 Evasion (%) 50 Item Schematics ----------------- None Robot Schematics ------------------ None Fabricated ------------ Nothing Alien Tech Used ----------------- None Achievements -------------- Close Call First Step to Greatness Let's See Who's Tougher Oops Risk Taker Uninvited Guest Challenges ------------ None Game ------ Seed BarrageSignalMediator Manual? 0 Play Time 00:32:39 Cumulative 0.5 hours Start 2024.04.02 @ 20:47:41 End 2024.04.02 @ 21:21:07 Sessions 1 Manual Loads 0 Difficulty Rogue Special Mode None Game No. 1 Rogue 1 Adventurer 0 Explorer 0 Win Type - Total 0 Types 0/0/0/0/0/0/0/0/0 Lore% 0 Gallery% 2 Achievement% 2 Wizard Run 0 Options --------- Layout 1 ASCII 0 Keyboard 0 Movement Mouse Keybinds 0 Fullscreen 2 Font 32/SmallcapsGlow Map View 50x35 Zoom Use 0% Tactical HUD 1 Map Filters NONE Filters NONE Steam 0 RUN: 80450fd9-dabf-4fab-8e11-d5b8a8ed48d6